bitfinex-derivatives/quotes_SOLF0:USTF0_20250212
["timestamp","ask_amount","ask_price","bid_price","bid_amount"]
[1739336266100,5.1445,194.43,194.35,14.32094166]
[1739336266300,0.03655821,194.42,194.38,0.03617146]
[1739336266598,5.18135821,194.42,194.38,0.03617146]
[1739336266797,0.03655821,194.42,194.38,0.03617146]
[1739336268497,5.1453,194.4,194.38,0.03617146]
[1739336268801,0.03655821,194.42,194.38,0.03617146]
[1739336269394,5.1455,194.4,194.38,0.03617146]
[1739336269600,0.03655821,194.42,194.38,0.03617146]
[1739336270603,5.145,194.41,194.38,0.03617146]
[1739336270902,14.32094166,194.41,194.38,0.03617146]
[1739336271304,5.1455,194.39,194.38,0.03617146]
[1739336272203,14.32094166,194.41,194.38,0.03617146]
[1739336272901,0.03655821,194.42,194.38,0.03617146]
[1739336273899,0.03655821,194.42,194.38,5.18197146]
[1739336274103,0.03655821,194.42,194.38,0.03617146]
[1739336275504,5.145,194.41,194.38,0.03617146]
[1739336275704,14.32094166,194.41,194.38,0.03617146]
[1739336276899,5.1453,194.4,194.38,0.03617146]
[1739336277107,14.32094166,194.41,194.38,0.03617146]
[1739336277403,0.03655821,194.42,194.38,0.03617146]
[1739336278805,5.1453,194.4,194.38,0.03617146]
[1739336279009,0.03655821,194.42,194.38,0.03617146]
[1739336279203,14.32094166,194.41,194.38,0.03617146]
[1739336280008,5.1455,194.39,194.38,0.03617146]
[1739336280204,14.32094166,194.41,194.38,0.03617146]
[1739336281508,5.1455,194.39,194.38,0.03617146]
[1739336282407,5.1453,194.4,194.38,0.03617146]
[1739336283310,19.46604166,194.41,194.38,0.03617146]
[1739336283511,14.32094166,194.41,194.38,0.03617146]
[1739336283908,5.1453,194.4,194.38,0.03617146]
[1739336284308,14.32094166,194.41,194.38,0.03617146]
[1739336284513,5.1455,194.39,194.38,0.03617146]
[1739336285707,5.1468,194.35,194.31,1.5142]
[1739336286411,19.46704166,194.37,194.31,6.6619]
[1739336286609,14.32094166,194.37,194.31,6.6619]
[1739336286813,0.03562963,194.36,194.32,0.0375677]
[1739336287016,5.1466,194.35,194.32,0.0375677]
[1739336289616,0.03562963,194.36,194.32,0.0375677]
[1739336289816,5.1469,194.34,194.32,0.0375677]
[1739336290320,0.03562963,194.36,194.32,0.0375677]
[1739336290623,5.18222963,194.36,194.32,0.0375677]
[1739336290923,0.03562963,194.36,194.32,0.0375677]
[1739336291121,5.1467,194.35,194.32,0.0375677]
[1739336292318,0.03562963,194.36,194.32,0.0375677]
[1739336292520,5.1471,194.33,194.32,0.0375677]
[1739336293124,5.1467,194.35,194.32,0.0375677]
[1739336297916,14.30357369,194.34,194.32,0.0375677]
[1739336300123,5.1471,194.33,194.32,0.0375677]
[1739336300726,14.30357369,194.34,194.32,0.0375677]
[1739336300925,5.1469,194.34,194.32,0.0375677]
[1739336301926,9.19230332,194.36,194.32,0.0375677]
[1739336302124,5.1467,194.35,194.32,0.0375677]
[1739336304222,9.19230332,194.36,194.32,0.0375677]
[1739336304427,14.30357369,194.34,194.32,0.0375677]
[1739336305528,9.15667369,194.34,194.32,0.0375677]
[1739336305725,5.1471,194.33,194.32,0.0375677]
[1739336319630,14.30357369,194.34,194.32,0.0375677]
[1739336320634,9.15667369,194.34,194.32,0.0375677]
[1739336322536,5.1471,194.33,194.32,0.0375677]
[1739336324231,9.15667369,194.34,194.32,0.0375677]
[1739336324536,5.1468,194.35,194.32,0.0375677]
[1739336325031,9.19230332,194.36,194.32,0.0375677]
[1739336325933,5.1468,194.35,194.32,0.0375677]
[1739336326132,9.15667369,194.34,194.32,0.0375677]
[1739336327840,5.1471,194.33,194.32,0.0375677]
[1739336329041,9.15667369,194.34,194.32,0.0375677]
[1739336329240,14.30357369,194.34,194.32,0.0375677]
[1739336329644,5.1471,194.33,194.32,0.0375677]
[1739336333936,0.03562963,194.36,194.32,0.0375677]
[1739336334138,0.03562963,194.36,194.35,9.15667369]
[1739336334536,9.15667369,194.42,194.36,5.1461]
[1739336334736,9.15667369,194.42,194.35,9.15667369]
[1739336335140,9.15667369,194.44,194.39,9.15667369]
[1739336335342,9.15667369,194.42,194.35,9.15667369]
[1739336335546,9.19595365,194.4,194.37,0.03522579]
[1739336335747,9.15667369,194.4,194.37,0.03522579]
[1739336335945,9.19321898,194.4,194.37,0.03522579]
[1739336336648,5.1456,194.39,194.37,0.03522579]
[1739336336847,9.19321898,194.4,194.37,0.03522579]
[1739336337148,14.30247369,194.38,194.37,0.03522579]
[1739336337341,9.15667369,194.38,194.37,0.03522579]
[1739336337742,9.19321898,194.4,194.37,0.03522579]
[1739336337942,5.1456,194.39,194.37,0.03522579]
[1739336339550,14.30247369,194.38,194.37,0.03522579]
[1739336340049,9.15667369,194.38,194.27,9.15667369]
[1739336340243,9.15667369,194.32,194.26,1.5199]
[1739336341043,9.15667369,194.3,194.26,1.5199]
[1739336341249,9.15667369,194.3,194.27,0.03481952]
[1739336347954,9.15667369,194.3,194.27,5.18351952]
[1739336348253,9.15667369,194.3,194.27,0.03481952]
[1739336348853,9.15667369,194.3,194.28,5.1483]
[1739336349055,0.03471164,194.31,194.27,9.19149321]
[1739336349452,0.03471164,194.31,194.3,5.1479]
[1739336352355,9.15667369,194.37,194.33,5.147]
[1739336353556,9.19483984,194.37,194.33,5.18516498]
[1739336353969,0.03816615,194.37,194.33,0.03816498]
[1739336354258,0.03816615,194.37,194.33,9.19483867]
[1739336355559,0.03816615,194.37,194.34,5.1468]
[1739336357756,0.03816615,194.37,194.33,9.19483867]
[1739336357961,9.15667369,194.45,194.35,9.15667369]
[1739336358158,9.15667369,194.49,194.41,9.15667369]
[1739336358362,9.15667369,194.49,194.44,5.1442]
[1739336359057,0.0341473,194.48,194.45,0.03701181]
[1739336360860,0.0341473,194.48,194.47,9.15667369]
[1739336361665,84.9891491,194.54,194.46,1.5357]
[1739336362057,14.27940483,194.57,194.46,1.5357]
[1739336362258,0.9454054,194.56,194.46,1.5357]
[1739336362964,5.1415,194.55,194.49,0.03790768]
[1739336363362,5.1417,194.54,194.49,0.03790768]
[1739336365068,5.1413,194.55,194.49,0.03790768]
[1739336365966,5.1413,194.55,194.49,5.18080768]
[1739336366162,14.27940483,194.57,194.49,0.03790768]
[1739336366359,5.1416,194.54,194.49,0.03790768]
[1739336368965,5.142,194.53,194.49,0.03790768]
[1739336371769,5.142,194.53,194.49,5.18070768]
[1739336372068,5.1416,194.54,194.49,0.03790768]
[1739336373571,5.1419,194.53,194.49,5.18080768]
[1739336373770,14.27940483,194.57,194.49,0.03790768]
[1739336374875,5.1422,194.52,194.49,0.03790768]
[1739336377776,14.27940483,194.57,194.49,0.03790768]
[1739336377975,5.1426,194.5,194.49,0.03790768]
[1739336383781,14.28665209,194.5,194.49,0.03790768]
[1739336393200,9.14405209,194.5,194.49,0.03790768]
[1739336393697,14.28635209,194.52,194.49,0.03790768]
[1739336394195,5.1424,194.51,194.49,0.03790768]
[1739336394696,9.14405209,194.5,194.49,0.03790768]
[1739336394897,14.28665209,194.5,194.49,0.03790768]
[1739336395996,5.1438,194.46,194.41,3.176]
[1739336396195,14.28785209,194.46,194.41,3.176]
[1739336396790,9.14405209,194.46,194.41,3.176]
[1739336397095,5.17788552,194.45,194.42,0.03919899]
[1739336397502,24.10386405,194.63,194.42,0.03919899]
[1739336397693,9.14405209,194.61,194.53,9.14405209]
[1739336397995,0.94522684,194.6,194.53,9.14405209]
[1739336398295,9.14405209,194.61,194.53,9.14405209]
[1739336398796,9.16454874,194.59,194.55,0.03606241]
[1739336399002,9.14405209,194.57,194.55,0.03606241]
[1739336399701,0.02049665,194.59,194.55,0.03606241]
[1739336400500,0.02049665,194.59,194.55,5.17736241]
[1739336401200,0.02049665,194.59,194.55,0.03606241]
[1739336402802,0.02049665,194.59,194.56,5.141]
[1739336403004,0.02049665,194.59,194.55,0.03606241]
[1739336404104,0.02049665,194.59,194.56,14.27562067]
[1739336404906,5.1384,194.66,194.6,5.1399]
[1739336405102,14.27562067,194.69,194.56,14.27562067]
[1739336405399,5.1386,194.66,194.57,5.1407]
[1739336405599,14.27562067,194.69,194.56,14.27562067]
[1739336406006,14.27562067,194.69,194.61,0.03666217]
[1739336406908,5.1379,194.68,194.62,5.1395]
[1739336407097,14.27562067,194.72,194.59,14.27562067]
[1739336407414,14.27562067,194.72,194.63,0.03860106]
[1739336408108,5.1379,194.68,194.63,0.03860106]
[1739336408808,5.1382,194.67,194.63,0.03860106]
[1739336409009,14.27562067,194.72,194.63,0.03860106]
[1739336409209,14.27562067,194.69,194.63,0.03860106]
[1739336410414,5.1389,194.64,194.63,0.03860106]
[1739336411006,14.27562067,194.66,194.54,4.5514]
[1739336411206,14.27562067,194.63,194.54,4.5514]
[1739336411410,14.27562067,194.66,194.54,4.5514]
[1739336411610,5.1395,194.63,194.57,5.1408]
[1739336411811,14.27562067,194.66,194.54,4.5514]
[1739336412210,0.03530995,194.62,194.58,0.03465405]
[1739336413512,5.1401,194.6,194.58,0.03465405]
[1739336413711,0.03530995,194.62,194.58,0.03465405]
[1739336414614,5.1403,194.59,194.58,0.03465405]
[1739336415211,14.27562067,194.6,194.47,14.27562067]
[1739336415514,14.27562067,194.57,194.44,14.27562067]
[1739336415907,5.1424,194.51,194.44,19.41962067]
[1739336416111,14.27562067,194.57,194.44,14.27562067]
[1739336416311,0.03460027,194.49,194.46,0.03733015]
[1739336417911,5.1434,194.47,194.46,0.03733015]
[1739336419315,5.1449,194.42,194.37,1.5186]
[1739336419715,5.145,194.41,194.37,1.5186]
[1739336420214,5.144,194.45,194.37,1.5186]
[1739336420417,0.03731781,194.41,194.37,1.55190236]
[1739336420717,0.03731781,194.41,194.37,0.03330236]
[1739336422917,0.03731781,194.41,194.38,5.1456]
[1739336423208,0.03731781,194.41,194.37,0.03330236]
[1739336425011,0.03731781,194.41,194.37,5.17910236]
[1739336426015,0.03731781,194.41,194.37,0.03330236]
[1739336426422,0.03731781,194.41,194.39,5.1455]
[1739336426616,0.03731781,194.41,194.37,0.03330236]
[1739336426816,5.18231781,194.41,194.37,0.03330236]
[1739336427016,0.03731781,194.41,194.38,5.1457]
[1739336428118,0.03731781,194.41,194.39,5.1453]
[1739336429719,0.03731781,194.41,194.38,5.1458]
[1739336430723,0.03731781,194.41,194.37,0.03330236]
[1739336430926,0.03731781,194.41,194.39,5.1455]
[1739336431326,0.03731781,194.41,194.4,5.1453]
[1739336431525,5.1437,194.47,194.38,14.27562067]
[1739336432028,5.1437,194.47,194.42,5.1446]
[1739336432622,5.1431,194.49,194.43,0.0358753]
[1739336432828,0.03446274,194.46,194.43,0.0358753]
[1739336433124,0.03446274,194.46,194.44,5.1442]
[1739336433329,209.27562067,194.57,194.44,14.27562067]
[1739336433625,209.27562067,194.57,194.45,1.4908]
[1739336433823,209.27562067,194.57,194.47,5.1434]
[1739336434129,0.9453744,194.56,194.47,5.1434]
[1739336434428,209.27562067,194.57,194.45,6.6347]
[1739336434625,0.03554491,194.53,194.5,0.03430043]
[1739336435726,5.1424,194.51,194.5,0.03430043]
[1739336436225,14.27562067,194.51,194.38,14.27562067]
[1739336436928,14.27562067,194.48,194.35,14.27562067]
[1739336437129,14.27562067,194.45,194.35,14.27562067]
[1739336437326,5.1448,194.42,194.37,5.1461]
[1739336437526,0.03803726,194.42,194.38,0.03453765]
[1739336438226,5.18283726,194.42,194.38,0.03453765]
[1739336438429,0.03803726,194.42,194.38,0.03453765]
[1739336438630,14.27562067,194.41,194.38,0.03453765]
[1739336438929,5.1455,194.39,194.38,0.03453765]
[1739336440139,14.27562067,194.41,194.3,73.46002965]
[1739336440339,14.27562067,194.38,194.27,5.1487]
[1739336441032,5.1466,194.36,194.27,5.1487]
[1739336441233,14.27562067,194.38,194.26,15.82992067]
[1739336441433,0.03569522,194.34,194.31,0.03561214]
[1739336443338,0.03569522,194.34,194.31,5.18321214]
[1739336443739,0.03569522,194.34,194.31,0.03561214]
[1739336450335,0.03569522,194.34,194.33,5.1471]
[1739336450835,9.522e-05,194.34,194.33,5.1471]
[1739336451238,9.522e-05,194.34,194.33,8.2776]
[1739336451840,195.0,194.43,194.41,5.1448]
[1739336452044,14.27562067,194.47,194.35,14.27562067]
[1739336452241,1.4997,194.49,194.38,14.27562067]
[1739336452445,1.4997,194.49,194.44,5.1441]
[1739336453047,0.03527145,194.48,194.45,0.03772566]
[1739336453751,0.03527145,194.48,194.47,5.1434]
[1739336454439,0.03527145,194.48,194.45,0.03772566]
[1739336454946,0.03527145,194.48,194.46,5.1437]
[1739336455551,0.03527145,194.48,194.45,0.03772566]
[1739336456043,14.27562067,194.47,194.45,0.03772566]
[1739336456850,19.41902067,194.47,194.45,0.03772566]
[1739336457248,15.80862067,194.47,194.35,1.532]
[1739336457450,14.27562067,194.43,194.35,6.6784]
[1739336457852,14.27562067,194.43,194.35,1.532]
[1739336458153,5.1448,194.42,194.35,1.532]
[1739336458349,0.03521388,194.41,194.37,0.03497345]
[1739336460352,0.03521388,194.41,194.37,5.18087345]
[1739336460553,0.03521388,194.41,194.37,0.03497345]
[1739336462353,0.03521388,194.41,194.39,5.1454]
[1739336462749,0.03521388,194.41,194.37,0.03497345]
[1739336462953,0.03521388,194.41,194.4,5.1453]
[1739336465155,5.1434,194.48,194.43,5.1444]
[1739336465463,14.27562067,194.52,194.38,14.27562067]
[1739336465958,14.27562067,194.52,194.43,5.1443]
[1739336466352,0.03531985,194.49,194.46,0.03352763]
[1739336466757,5.1432,194.48,194.46,0.03352763]
[1739336467865,0.03531985,194.49,194.46,0.03352763]
[1739336468664,5.17831985,194.49,194.46,0.03352763]
[1739336470966,0.03531985,194.49,194.46,0.03352763]
[1739336472563,5.1432,194.48,194.46,0.03352763]
[1739336472767,0.03531985,194.49,194.46,0.03352763]
[1739336473369,5.1432,194.48,194.46,0.03352763]
[1739336473564,0.03531985,194.49,194.46,0.03352763]
[1739336473862,5.17841985,194.49,194.46,0.03352763]
[1739336474068,0.03531985,194.49,194.46,0.03352763]
[1739336474265,14.31094052,194.49,194.46,0.03352763]
[1739336474465,14.31094052,194.49,194.35,1.532]
[1739336474668,14.27562067,194.46,194.35,1.532]
[1739336475264,19.41952067,194.46,194.35,1.532]
[1739336475670,0.03812982,194.42,194.39,0.03407021]
[1739336475973,0.03812982,194.42,194.4,5.1452]
[1739336478673,0.03812982,194.42,194.39,0.03407021]
[1739336478872,14.31375049,194.42,194.39,0.03407021]
[1739336479471,5.1452,194.41,194.39,0.03407021]
[1739336479972,0.03812982,194.42,194.39,0.03407021]
[1739336480671,0.03812982,194.42,194.41,5.145]
[1739336481675,0.03812982,194.42,194.39,0.03407021]
[1739336482673,14.31375049,194.42,194.39,0.03407021]
[1739336483269,14.31375049,194.42,194.32,5.1474]
[1739336483470,14.27562067,194.39,194.32,5.1474]
[1739336483871,14.27562067,194.39,194.3,5.1477]
[1739336484071,14.27562067,194.39,194.29,1.5725]
[1739336484275,5.18453912,194.36,194.32,0.0357853]
[1739336486768,0.03823912,194.36,194.32,0.0357853]
[1739336487178,14.31385979,194.36,194.32,0.0357853]
[1739336488577,19.42272067,194.33,194.32,0.0357853]
[1739336489369,14.27562067,194.33,194.32,0.0357853]
[1739336489574,5.1469,194.34,194.32,0.0357853]
[1739336489878,5.1471,194.33,194.32,0.0357853]
[1739336491375,5.1469,194.34,194.32,0.0357853]
[1739336492581,14.31385979,194.36,194.32,0.0357853]
[1739336493176,19.46025979,194.36,194.32,0.0357853]
[1739336493475,14.31385979,194.36,194.32,0.0357853]
[1739336494172,0.03823912,194.36,194.32,0.0357853]
[1739336495279,0.03823912,194.36,194.34,5.1466]
[1739336495874,0.03823912,194.36,194.35,5.1466]
[1739336496071,195.0,194.43,194.33,3.2063]
[1739336496275,3.163,194.49,194.35,14.27562067]
[1739336496481,14.27562067,194.48,194.35,14.27562067]
[1739336496678,14.27562067,194.48,194.36,1.6185]
[1739336496883,3.163,194.49,194.42,5.1447]
[1739336496884,6.7809,194.49,194.42,5.1447]
[1739336497081,1.6378,194.49,194.38,14.27562067]
[1739336497279,0.03554033,194.47,194.44,0.03600868]
[1739336498876,5.17894033,194.47,194.44,0.03600868]
[1739336499079,0.03554033,194.47,194.44,0.03600868]
[1739336499493,5.17894033,194.47,194.44,0.03600868]
[1739336500379,5.1437,194.46,194.44,0.03600868]
[1739336500784,0.03554033,194.47,194.44,0.03600868]
[1739336500985,5.17904033,194.47,194.44,0.03600868]
[1739336503086,0.03554033,194.47,194.44,0.03600868]
[1739336503590,14.27562067,194.45,194.44,0.03600868]
[1739336504399,0.03554033,194.47,194.44,0.03600868]
[1739336505492,0.03554033,194.47,194.44,5.18000868]
[1739336505694,0.03554033,194.47,194.44,0.03600868]
[1739336506099,0.03554033,194.47,194.45,5.1437]
[1739336506302,0.03554033,194.47,194.44,0.03600868]
[1739336507298,0.03554033,194.47,194.46,5.1437]
[1739336507599,14.27562067,194.54,194.44,0.03600868]
[1739336507795,5.1419,194.53,194.48,5.1431]
[1739336508199,14.27562067,194.54,194.42,3.145]
[1739336508495,5.1421,194.53,194.47,5.1432]
[1739336508694,0.03375032,194.5,194.46,0.0354247]
[1739336509695,0.03375032,194.5,194.49,5.1429]
[1739336509893,5.032e-05,194.5,194.49,5.1429]
[1739336513399,15.77922067,194.63,194.56,5.1409]
[1739336513594,15.77922067,194.63,194.52,14.27562067]
[1739336513794,15.77922067,194.63,194.53,3.1308]
[1739336513996,5.1397,194.62,194.56,5.1411]
[1739336514189,5.1397,194.62,194.53,3.1308]
[1739336514491,14.27562067,194.66,194.57,0.03399569]
[1739336514700,0.03452742,194.61,194.57,0.03399569]
[1739336514899,0.03452742,194.61,194.55,14.27562067]
[1739336515101,0.03452742,194.61,194.57,0.03316166]
[1739336515300,0.03452742,194.61,194.58,5.1405]
[1739336515696,5.17432742,194.61,194.57,0.03316166]
[1739336515901,0.03452742,194.61,194.57,0.03316166]
[1739336517905,0.03452742,194.61,194.59,5.14]
[1739336518303,0.03452742,194.61,194.6,5.14]
[1739336519498,0.03452742,194.61,194.57,14.30878233]
[1739336519701,0.03452742,194.61,194.59,5.1402]
[1739336520306,0.03452742,194.61,194.6,5.14]
[1739336520700,0.03452742,194.61,194.58,5.1405]
[1739336520900,0.03452742,194.61,194.57,0.03316166]
[1739336521401,0.03452742,194.61,194.6,5.14]
[1739336523206,212.31462067,194.75,194.67,5.1381]
[1739336523406,0.9445519,194.74,194.64,14.27562067]
[1739336523599,5.1366,194.73,194.65,1.5805]
[1739336523904,5.1366,194.73,194.65,3.0899]
[1739336524108,5.1362,194.75,194.7,5.1373]
[1739336524297,5.1362,194.75,194.65,3.0899]
[1739336524298,14.27562067,194.78,194.67,14.27562067]
[1739336524502,14.27562067,194.78,194.67,14.30836755]
[1739336525004,14.27562067,194.78,194.67,0.03274688]
[1739336525203,14.27562067,194.75,194.67,0.03274688]
[1739336525905,5.1363,194.74,194.67,5.17064688]
[1739336526105,5.1363,194.74,194.67,0.03274688]
[1739336526305,1.6025,194.77,194.67,14.30836755]
[1739336526604,5.1362,194.75,194.7,5.1374]
[1739336527102,5.1362,194.75,194.71,0.03960168]
[1739336527403,5.1366,194.73,194.71,0.03960168]
[1739336527604,1.6025,194.77,194.71,0.03960168]
[1739336528005,5.1361,194.75,194.71,0.03960168]
[1739336528308,1.6025,194.77,194.71,0.03960168]
[1739336528504,5.136,194.75,194.71,0.03960168]
[1739336528706,1.6025,194.77,194.71,0.03960168]
[1739336529605,5.1368,194.72,194.71,0.03960168]
[1739336529906,1.6025,194.77,194.71,0.03960168]
[1739336530107,6.7382,194.77,194.71,5.17660168]
[1739336530310,5.1357,194.77,194.71,5.17660168]
[1739336531007,1.69946,194.8,194.71,5.17660168]
[1739336531212,5.135,194.79,194.74,5.1363]
[1739336531401,0.18276,194.8,194.71,0.03960168]
[1739336531608,0.18276,194.8,194.7,14.27562067]
[1739336531808,5.31776,194.8,194.74,0.03570112]
[1739336532604,0.18276,194.8,194.77,5.1355]
[1739336533409,0.18276,194.8,194.74,1.58030112]
[1739336533612,0.18276,194.8,194.74,3.07360112]
[1739336534206,0.18276,194.8,194.75,5.1358]
[1739336534412,0.18276,194.8,194.74,3.07360112]
[1739336535111,0.18276,194.8,194.77,5.1355]
[1739336535312,0.18276,194.8,194.74,3.07360112]
[1739336535711,5.31766,194.8,194.74,3.07360112]
[1739336535911,0.18276,194.8,194.75,14.27562067]
[1739336536412,0.18276,194.8,194.79,5.135]
[1739336537012,14.27562067,194.9,194.78,14.27562067]
[1739336537213,0.94385333,194.89,194.78,14.27562067]
[1739336537412,0.94385333,194.89,194.82,0.03720138]
[1739336537710,0.94385333,194.89,194.82,5.17120138]
[1739336537711,5.133,194.87,194.82,5.17120138]
[1739336537913,14.27562067,194.9,194.82,0.03720138]
[1739336538306,5.1326,194.88,194.84,5.1336]
[1739336538506,18.98752067,194.93,194.84,5.1336]
[1739336538717,0.94358426,194.92,194.84,5.1336]
[1739336539016,5.1326,194.88,194.87,0.03665075]
[1739336540013,5.1338,194.84,194.75,14.27562067]
[1739336540611,14.27562067,194.84,194.74,3.0379]
[1739336540812,14.27562067,194.84,194.74,1.5446]
[1739336541005,14.30875628,194.81,194.77,0.03497792]
[1739336541206,14.27562067,194.81,194.69,14.27562067]
[1739336541413,14.27562067,194.78,194.77,0.03939618]
[1739336541615,5.1358,194.76,194.67,1.5117]
[1739336542116,14.27562067,194.78,194.7,0.03526623]
[1739336542315,0.03544237,194.73,194.7,0.03526623]
[1739336544115,0.03544237,194.73,194.72,14.27562067]
[1739336544321,5.1345,194.81,194.72,14.27562067]
[1739336544512,15.89172067,194.87,194.75,14.27562067]
[1739336544712,0.94391777,194.86,194.75,14.27562067]
[1739336544913,15.89172067,194.87,194.75,14.27562067]
[1739336545218,5.1339,194.84,194.75,14.27562067]
[1739336545618,5.1339,194.84,194.79,0.03822582]
[1739336546213,5.1329,194.87,194.79,0.03822582]
[1739336546616,14.27562067,194.9,194.79,0.03822582]
[1739336546816,0.94378653,194.89,194.79,0.03822582]
[1739336547218,5.1328,194.88,194.81,14.27562067]
[1739336547615,5.1328,194.88,194.79,22.76513949]
[1739336547812,5.1328,194.88,194.83,0.03356221]
[1739336548320,1.6027,194.92,194.83,0.03356221]
[1739336548521,0.94378822,194.91,194.83,0.03356221]
[1739336550021,5.1334,194.86,194.83,0.03356221]
[1739336550418,24.36783949,194.92,194.83,0.03356221]
[1739336550618,0.94380322,194.91,194.83,0.03356221]
[1739336550819,5.1325,194.89,194.83,0.03356221]
[1739336551020,0.94380322,194.88,194.83,0.03356221]
[1739336551215,24.36783949,194.92,194.83,0.03356221]
[1739336551216,22.76513949,194.92,194.83,0.03356221]
[1739336551422,5.1311,194.94,194.86,22.76513949]
[1739336551822,5.1311,194.94,194.88,0.03307148]
[1739336552318,22.76513949,195.02,194.9,5.132]
[1739336552522,0.94329869,195.01,194.89,22.76513949]
[1739336552724,0.94329869,195.04,194.94,0.03387301]
[1739336552924,0.94329869,195.03,194.94,0.03387301]
[1739336553127,0.94329869,195.04,194.94,0.03387301]
[1739336553420,5.1294,195.01,194.94,0.03387301]
[1739336553627,0.94329869,195.0,194.94,0.03387301]
[1739336553819,22.76513949,195.02,194.94,0.03387301]
[1739336554019,5.1308,194.95,194.94,0.03387301]
[1739336557926,22.76513949,195.02,194.94,0.03387301]
[1739336558127,5.1305,194.96,194.94,0.03387301]
[1739336558330,22.76513949,195.02,194.94,0.03387301]
[1739336558529,0.94324255,195.01,194.94,0.03387301]
[1739336558824,22.76513949,194.99,194.84,1.5524]
[1739336559031,0.94324255,194.98,194.84,1.5524]
[1739336559732,1.5957,194.97,194.84,1.5524]
[1739336560032,1.5957,194.97,194.89,0.0331062]
[1739336560033,0.03438805,194.93,194.89,0.0331062]
[1739336560732,5.16598805,194.93,194.89,0.0331062]
[1739336560930,0.03438805,194.93,194.89,0.0331062]
[1739336561931,0.03438805,194.93,194.92,5.1316]
[1739336562131,0.03438805,194.93,194.89,0.0331062]
[1739336563032,5.1318,194.92,194.89,0.0331062]
[1739336563533,0.03438805,194.93,194.89,0.0331062]
[1739336564033,5.1316,194.92,194.89,0.0331062]
[1739336564927,5.1318,194.91,194.89,0.0331062]
[1739336565128,0.03438805,194.93,194.89,0.0331062]
[1739336565931,5.1321,194.9,194.89,0.0331062]
[1739336568637,5.1332,194.86,194.8,14.22577823]
[1739336569640,0.03788906,194.85,194.82,5.1342]
[1739336569831,5.1329,194.87,194.82,5.1342]
[1739336570034,0.03850962,194.85,194.82,0.03725847]
[1739336570236,5.1326,194.88,194.84,5.1337]
[1739336570538,0.03359152,194.85,194.84,5.1337]
[1739336570837,0.03359152,194.85,194.84,5.17016014]
[1739336571440,5.16699152,194.85,194.84,0.03646014]
[1739336571935,0.03359152,194.85,194.84,0.03646014]
[1739336577643,0.03359152,194.85,194.84,5.17016014]
[1739336580246,0.03359152,194.85,194.84,0.03646014]
[1739336582646,0.03359152,194.85,194.84,5.17016014]
[1739336584349,9.152e-05,194.85,194.84,5.17016014]
[1739336585349,9.152e-05,194.85,194.84,0.03646014]
[1739336586550,9.152e-05,194.85,194.84,5.17016014]
[1739336588446,9.152e-05,194.85,194.84,0.03646014]
[1739336589852,9.152e-05,194.85,194.84,14.26223837]
[1739336590058,9.152e-05,194.85,194.84,19.39593837]
[1739336590450,9.152e-05,194.85,194.84,5.17016014]
[1739336596358,9.152e-05,194.85,194.84,0.03646014]
[1739336602565,9.152e-05,194.85,194.75,42.82141237]
[1739336602861,14.22577823,194.84,194.75,28.59563414]
[1739336603062,5.1344,194.82,194.75,42.82141237]
[1739336603759,0.03470512,194.8,194.77,0.03876136]
[1739336604257,0.03470512,194.8,194.78,14.22577823]
[1739336604659,5.12e-06,194.8,194.79,5.135]
[1739336606461,5.12e-06,194.8,194.78,19.36097823]
[1739336606760,5.12e-06,194.8,194.78,5.1352]
[1739336607267,5.12e-06,194.8,194.77,0.03876136]
[1739336607767,5.13490512,194.8,194.77,0.03876136]
[1739336608568,5.12e-06,194.8,194.77,0.03876136]
[1739336609262,5.1352,194.78,194.77,0.03876136]
[1739336611162,5.12e-06,194.8,194.77,0.03876136]
[1739336611358,5.135,194.79,194.77,0.03876136]
[1739336611861,5.1352,194.78,194.77,0.03876136]
[1739336612165,5.12e-06,194.8,194.77,0.03876136]
[1739336614059,5.135,194.79,194.77,0.03876136]
[1739336615468,5.12e-06,194.8,194.77,0.03876136]
[1739336616765,5.12e-06,194.8,194.79,5.135]
[1739336618767,4.5857,194.95,194.87,5.1328]
[1739336619467,5.1314,194.93,194.87,5.1328]
[1739336619865,0.03574928,194.92,194.88,0.03387051]
[1739336620468,5.1318,194.91,194.88,0.03387051]
[1739336620771,0.03574928,194.92,194.88,0.03387051]
[1739336621065,5.16754928,194.92,194.88,0.03387051]
[1739336623271,0.03574928,194.92,194.88,5.16647051]
[1739336623473,0.03574928,194.92,194.88,0.03387051]
[1739336623872,0.03574928,194.92,194.9,5.132]
[1739336624276,0.03574928,194.92,194.91,5.1318]
[1739336626780,0.03574928,194.92,194.88,0.03387051]
[1739336627173,4.928e-05,194.92,194.89,14.22577823]
[1739336627374,17.34877823,195.05,194.89,15.76987823]
[1739336627580,10.73081914,195.07,194.95,14.22577823]
[1739336627782,10.73081914,195.07,194.96,3.0281]